bitfinex-derivatives/quotes_ETHF0:USTF0_20250804
["timestamp","ask_amount","ask_price","bid_price","bid_amount"]
[1754295556858,19.98664,3560.9,3560.7,0.56166]
[1754295557261,0.56168,3560.7,3560.6,0.56167]
[1754295557556,23.18748,3560.7,3560.6,0.56167]
[1754295557953,0.56169,3560.6,3560.5,0.56168]
[1754295558162,23.18747,3560.7,3560.5,0.56168]
[1754295559760,22.6258,3560.7,3560.5,0.56168]
[1754295560559,23.18747,3560.7,3560.5,0.56168]
[1754295560961,0.82515241,3560.6,3560.5,0.56168]
[1754295561264,0.82515241,3560.6,3560.4,0.5617]
[1754295561560,19.417,3560.5,3560.4,0.5617]
[1754295563761,20.24287761,3560.5,3560.4,0.5617]
[1754295567855,0.56172,3560.4,3559.9,1.40448]
[1754295568058,22.6218,3560.3,3560.2,0.56174]
[1754295568762,23.44861071,3560.3,3560.2,0.56174]
[1754295570165,0.56174,3560.2,3560.1,0.56175]
[1754295570371,0.82681071,3560.2,3559.9,0.56178]
[1754295570670,0.56183,3559.7,3559.6,0.56183]
[1754295570859,23.18163,3559.7,3559.6,0.56183]
[1754295571269,22.6198,3559.7,3559.6,0.56183]
[1754295571670,23.44651346,3559.7,3559.6,0.56183]
[1754295573173,0.56184,3559.6,3559.5,0.56184]
[1754295573467,0.82671346,3559.6,3559.5,0.56184]
[1754295574168,0.56185,3559.5,3559.3,0.56188]
[1754295574369,19.411,3559.4,3559.3,0.56188]
[1754295574670,0.56188,3559.3,3559.2,0.56189]
[1754295574870,3.2078,3559.3,3559.2,0.56189]
[1754295575173,3.76969,3559.3,3559.1,0.56191]
[1754295575467,19.412,3559.2,3559.1,0.56191]
[1754295576171,19.97391,3559.2,3558.5,1.40503]
[1754295576366,3.2078,3559.0,3558.9,0.56195]
[1754295577070,22.6188,3559.0,3558.9,0.56195]
[1754295577973,19.411,3559.0,3558.9,0.56195]
[1754295579683,20.23609925,3559.0,3558.9,0.56195]
[1754295579986,19.411,3559.0,3558.9,0.56195]
[1754295586683,3.2078,3559.6,3559.5,0.56185]
[1754295586885,23.44021923,3559.6,3559.5,0.56185]
[1754295587083,22.6158,3559.6,3559.5,0.56185]
[1754295590993,3.2078,3560.1,3560.0,0.56177]
[1754295591187,41.45406011,3560.9,3559.1,1.40477]
[1754295591188,3.2078,3560.7,3559.9,3.2078]
[1754295591390,19.406,3560.6,3560.5,0.56169]
[1754295591990,3.2078,3560.7,3560.5,0.56169]
[1754295592290,19.405,3560.6,3560.5,0.56169]
[1754295599090,19.405,3560.6,3560.4,0.5617]
[1754295602392,3.2078,3560.7,3560.6,0.56168]
[1754295602594,22.6028,3560.7,3560.6,0.56168]
[1754295603901,19.395,3560.7,3560.6,0.56168]
[1754295615401,3.2078,3561.1,3560.8,0.56165]
[1754295615605,3.2078,3561.1,3561.0,0.56162]
[1754295615806,22.5918,3561.1,3561.0,0.56162]
[1754295616408,19.384,3561.1,3561.0,0.56162]
[1754295619008,43.6468,3561.9,3561.8,0.56149]
[1754295619213,64.01818604,3561.9,3561.8,0.56149]
[1754295619513,64.0182494,3561.9,3561.8,0.56149]
[1754295620615,0.9894494,3561.9,3561.8,0.56149]
[1754295621116,20.3694494,3561.9,3561.8,0.56149]
[1754295621310,20.20578997,3561.9,3561.8,0.56149]
[1754295621916,20.36936877,3561.9,3561.8,0.56149]
[1754295622112,23.57718532,3561.9,3561.8,0.56149]
[1754295622312,20.36938532,3561.9,3561.7,0.5615]
[1754295622523,0.98939065,3561.8,3561.7,0.5615]
[1754295623013,19.54260068,3561.8,3561.7,0.5615]
[1754295623210,19.379,3561.8,3561.6,0.56151]
[1754295623407,0.56153,3561.6,3561.3,0.56156]
[1754295623612,22.5848,3561.5,3561.4,0.56155]
[1754295624012,19.377,3561.5,3561.4,0.56155]
[1754295625218,22.5848,3561.5,3560.9,3.2078]
[1754295625423,22.5848,3561.5,3561.3,0.56156]
[1754295625718,23.14635,3561.5,3561.3,0.56156]
[1754295625920,22.5848,3561.5,3561.3,0.56156]
[1754295626115,1.0,3562.0,3561.8,0.56149]
[1754295626319,1.0,3562.0,3561.8,3.76929]
[1754295626519,1.82519337,3562.0,3561.8,3.76929]
[1754295626820,1.0,3562.0,3561.8,3.76929]
[1754295627009,1.0,3562.0,3561.8,0.56149]
[1754295627214,20.375,3562.0,3561.8,0.56149]
[1754295627418,20.375,3562.0,3561.8,3.76929]
[1754295627821,1.0,3562.0,3561.8,3.76929]
[1754295630120,19.373,3561.9,3561.8,3.76929]
[1754295631328,0.37166,3562.0,3561.8,3.76929]
[1754295635428,19.371,3562.6,3562.5,0.56138]
[1754295636120,3.2078,3563.1,3562.2,3.2078]
[1754295636325,1.00006011,3563.6,3563.4,0.56124]
[1754295636533,0.82351215,3563.7,3563.6,0.56121]
[1754295636728,1.00006011,3564.0,3563.6,0.56121]
[1754295636729,0.82351215,3563.8,3563.6,0.56121]
[1754295637026,19.37,3563.8,3563.6,0.56121]
[1754295637222,0.82351215,3563.7,3563.5,0.56121]
[1754295637421,3.2078,3563.9,3563.7,0.56118]
[1754295637623,0.8231,3563.8,3563.7,0.56118]
[1754295637819,3.2078,3563.9,3563.1,1.40322]
[1754295638024,3.2078,3563.9,3563.7,0.56118]
[1754295638722,3.2078,3564.3,3564.2,0.56111]
[1754295638923,23.40038431,3564.3,3564.1,0.56112]
[1754295639125,0.56121,3563.6,3563.5,3.2078]
[1754295639419,19.456,3563.6,3563.2,1.40318]
[1754295639616,22.6678,3564.2,3564.0,0.56113]
[1754295639820,0.82215394,3564.1,3564.0,0.56113]
[1754295640015,1.38329394,3564.1,3563.8,0.56117]
[1754295640220,22.6678,3564.2,3563.8,0.56117]
[1754295640419,0.56117,3563.9,3563.7,0.56118]
[1754295640821,3.2078,3563.8,3563.7,0.56118]
[1754295641131,22.6778,3563.8,3563.7,0.56118]
[1754295641729,22.6748,3563.8,3563.7,0.56118]
[1754295642629,3.2078,3564.2,3564.1,0.56113]
[1754295642923,23.49538596,3564.2,3564.1,0.56113]
[1754295643824,23.49538596,3564.2,3564.0,0.56114]
[1754295644132,0.8215102,3564.1,3563.5,1.40307]
[1754295644725,0.8215102,3564.1,3563.9,0.56115]
[1754295645727,22.6738,3564.2,3564.1,0.56113]
[1754295645925,23.49540347,3564.2,3564.1,0.56113]
[1754295646422,23.49540347,3564.2,3563.5,1.40307]
[1754295646727,1.38274347,3564.1,3563.4,3.2078]
[1754295646924,3.2078,3563.8,3563.7,0.56118]
[1754295647119,22.6518,3563.8,3563.2,1.40318]
[1754295647330,19.444,3563.8,3563.6,0.5612]
[1754295647725,3.2078,3564.3,3563.9,0.56115]
[1754295647925,20.26561923,3564.2,3564.0,0.56114]
[1754295648127,0.82161923,3564.1,3564.0,0.56114]
[1754295649526,19.444,3564.2,3563.9,0.56115]
[1754295649829,41.42606011,3564.9,3564.8,0.56102]
[1754295650131,20.27363271,3564.9,3564.8,0.56102]
[1754295652332,21.27369282,3564.9,3564.8,0.56102]
[1754295652528,19.452,3564.9,3564.8,0.56102]
[1754295652835,19.452,3564.9,3564.7,0.56103]
[1754295658132,0.82166623,3564.8,3564.7,0.56103]
[1754295669241,0.82166623,3564.8,3564.6,0.56104]
[1754295669546,2.56106011,3565.0,3564.6,0.56104]
[1754295669547,20.20766623,3564.7,3564.6,0.56104]
[1754295670348,0.82166623,3564.7,3564.6,0.56104]
[1754295670647,20.20466623,3564.7,3564.6,0.56104]
[1754295674648,19.383,3564.7,3564.6,0.56104]
[1754295674843,20.19291142,3564.7,3564.6,0.56104]
[1754295676349,20.18944736,3564.7,3564.6,0.56104]
[1754295677849,20.18944736,3564.7,3564.3,3.2078]
[1754295678047,0.80644736,3564.6,3563.9,3.2078]
[1754295678247,20.89313621,3564.5,3564.2,0.56111]
[1754295678448,20.16944736,3564.4,3564.2,0.56111]
[1754295678652,0.80644736,3564.3,3564.2,0.56111]
[1754295681149,0.97027444,3564.3,3564.2,0.56111]
[1754295683655,0.56111,3564.2,3564.0,0.56113]
[1754295683850,20.16944736,3564.1,3564.0,0.56113]
[1754295684254,20.16944736,3564.1,3563.5,3.2078]
[1754295684450,0.56118,3563.8,3563.7,0.56118]
[1754295684651,19.92418,3563.8,3563.3,1.40312]
[1754295684955,0.80732888,3563.7,3563.6,0.5612]
[1754295685256,0.56121,3563.6,3563.5,0.56121]
[1754295685554,19.366,3563.6,3563.5,0.56121]
[1754295689554,3.2078,3564.2,3563.5,3.2078]
[1754295689754,20.33269727,3564.1,3563.9,0.56115]
[1754295689957,20.16943744,3564.0,3563.9,0.56115]
[1754295690157,19.366,3564.0,3563.9,0.56115]
[1754295690352,20.1693924,3564.0,3563.9,0.56115]
[1754295690554,19.366,3564.0,3563.9,0.56115]
[1754295690859,0.56108,3564.4,3564.2,0.5611]
[1754295691159,19.366,3564.3,3564.2,0.5611]
[1754295691355,20.33260495,3564.3,3564.2,0.5611]
[1754295693458,20.16937508,3564.3,3564.2,0.5611]
[1754295693655,20.33257169,3564.3,3564.2,0.5611]
[1754295693961,20.33157169,3564.3,3564.2,0.5611]
[1754295694162,0.56111,3564.2,3564.1,0.56112]
[1754295694358,1.36448508,3564.2,3564.1,0.56112]
[1754295696861,0.56115,3564.1,3564.0,0.56114]
[1754295697065,19.365,3564.1,3563.5,3.2078]
[1754295697357,0.56118,3563.9,3563.8,0.56117]
[1754295697563,19.92618,3563.9,3563.8,0.56117]
[1754295697764,20.7296398,3563.9,3563.8,0.56117]
[1754295698063,0.56118,3563.8,3563.7,0.56118]
[1754295698454,20.76794,3563.9,3563.4,0.56123]
[1754295698664,3.2078,3563.6,3563.4,0.56123]
[1754295698866,19.365,3563.5,3563.4,0.56123]
[1754295699959,0.56117,3563.9,3563.7,0.56119]
[1754295700164,0.56117,3563.9,3563.0,3.2078]
[1754295700165,0.80344774,3564.0,3563.9,0.56116]
[1754295700362,20.16844774,3564.0,3563.9,0.56116]
[1754295701066,0.56117,3563.9,3563.8,0.56117]
[1754295701269,0.56119,3563.8,3563.7,0.56119]
[1754295701461,0.56121,3563.7,3563.5,0.56121]
[1754295701764,19.366,3563.6,3563.5,0.56121]
[1754295701964,20.16944774,3563.6,3563.5,0.56121]
[1754295702163,20.16944774,3563.6,3562.6,1.40343]
[1754295702363,20.16944774,3563.6,3562.3,3.2078]
[1754295702364,3.2078,3562.8,3562.3,3.2078]
[1754295702559,20.73116025,3562.7,3562.5,0.56138]
[1754295702866,19.366,3562.7,3562.5,0.56138]
[1754295703668,3.2078,3562.8,3562.7,0.56136]
[1754295703966,20.16945611,3562.8,3562.7,0.56136]
[1754295704155,19.366,3562.8,3562.7,0.56136]
[1754295705962,19.368,3562.8,3562.7,0.56136]
[1754295707067,3.2078,3563.3,3563.2,0.56128]
[1754295707263,0.56128,3563.2,3563.1,0.56129]
[1754295707569,0.80324171,3563.2,3563.1,0.56129]
[1754295708473,20.17124171,3563.2,3563.1,0.56129]
[1754295710357,0.80324171,3563.2,3563.1,0.56129]
[1754295710570,40.406,3563.7,3563.6,0.56121]
[1754295710869,60.74140269,3563.7,3563.6,0.56121]
[1754295711063,60.57810783,3563.7,3563.6,0.56121]
[1754295715663,59.775,3563.7,3563.6,0.56121]
[1754295715864,60.57847602,3563.7,3563.0,1.40327]
[1754295716067,3.2078,3563.5,3563.4,0.56124]
[1754295716268,4.01127602,3563.5,3563.4,0.56124]
[1754295716567,19.38,3563.5,3563.4,0.56124]
[1754295716759,40.406,3563.7,3563.6,0.56121]
[1754295716965,59.95734035,3563.7,3563.6,0.56121]
[1754295717170,59.794,3563.7,3563.6,0.56121]
[1754295717676,60.59704712,3563.7,3563.6,0.56121]
[1754295718165,60.59404712,3563.7,3563.6,0.56121]
[1754295719273,60.75738706,3563.7,3563.5,0.56122]
[1754295719472,0.80304712,3563.6,3563.5,0.56122]
[1754295720068,0.56124,3563.5,3563.4,0.56125]
[1754295720270,0.56129,3563.3,3562.8,1.40337]
[1754295720470,19.385,3563.2,3563.1,0.56128]
[1754295720670,3.76905,3563.5,3563.3,0.56127]
[1754295720872,20.35250777,3563.4,3563.3,0.56127]
[1754295721473,0.56129,3563.2,3563.1,0.56129]
[1754295721770,0.56131,3563.1,3563.0,0.56131]
[1754295721975,3.2078,3563.4,3563.3,0.56127]
[1754295722272,23.55744459,3563.4,3563.3,0.56127]
[1754295722776,23.55742461,3563.4,3563.3,0.56127]
[1754295722974,24.11868461,3563.4,3563.3,0.56127]
[1754295723776,0.56129,3563.3,3563.2,0.56127]
[1754295723971,0.56129,3563.3,3562.0,2.80733]
[1754295723972,0.56131,3563.1,3562.9,0.56132]
[1754295724173,0.56133,3562.9,3562.8,0.56134]
[1754295724473,19.381,3562.9,3562.8,0.56134]
[1754295725073,19.381,3562.9,3562.3,4.61137]
[1754295725074,0.56135,3562.8,3562.3,1.40357]
[1754295725274,3.76913,3563.0,3562.9,0.56133]
[1754295725473,24.11737829,3563.0,3562.9,0.56133]
[1754295725673,24.11737733,3563.0,3562.9,0.56133]
[1754295725874,23.55604733,3563.0,3562.9,0.56133]
[1754295727375,23.55605748,3563.0,3562.9,0.56133]
[1754295727981,0.56137,3562.7,3562.0,1.40369]
[1754295728279,3.2078,3562.5,3562.0,1.40369]
[1754295728472,19.379,3562.4,3562.3,0.56143]
[1754295729071,19.379,3562.4,3562.2,0.56143]
[1754295729579,19.379,3562.4,3561.5,1.40386]
[1754295729880,19.379,3562.4,3561.8,0.56149]
[1754295729881,0.56146,3562.1,3561.8,0.56149]
[1754295730174,19.93548,3562.0,3561.7,0.56151]
[1754295730374,19.374,3562.0,3561.8,0.56149]
[1754295731174,3.2078,3562.1,3562.0,0.56147]
[1754295731379,22.6018,3562.1,3562.0,0.56147]
[1754295731880,3.2078,3562.1,3562.0,0.56147]
[1754295732076,19.391,3562.1,3562.0,0.56147]
[1754295734381,3.2078,3562.7,3562.6,0.56138]
[1754295734681,0.5614,3562.5,3561.2,1.40399]
[1754295734870,0.5614,3562.5,3561.1,3.2078]
[1754295734871,3.2078,3562.1,3561.1,3.2078]
[1754295735072,19.382,3562.0,3561.9,0.56149]
[1754295735581,3.2078,3562.1,3561.9,0.56149]
[1754295735971,19.384,3562.3,3562.2,0.56144]
[1754295736278,3.2078,3562.6,3562.5,0.56139]
[1754295736471,22.5958,3562.6,3562.5,0.56139]
[1754295737278,23.39935733,3562.6,3562.5,0.56139]
[1754295737476,22.5958,3562.6,3562.5,0.56139]
[1754295737686,23.39933649,3562.6,3562.5,0.56139]
[1754295737883,23.96072649,3562.6,3562.4,0.56141]
[1754295738079,23.15719,3562.6,3562.4,0.56141]
[1754295739583,23.15719,3562.6,3562.0,1.4037]
[1754295740280,23.15719,3562.6,3562.3,0.56141]
[1754295740281,0.56141,3562.5,3562.3,0.56141]
[1754295740479,23.15719,3562.6,3562.4,0.5614]
[1754295740783,0.56141,3562.5,3562.3,0.56142]
[1754295741184,23.15719,3562.6,3562.5,0.5614]
[1754295741386,23.96059339,3562.6,3562.5,0.5614]
[1754295741784,0.56141,3562.5,3562.4,0.56141]
[1754295742386,0.56143,3562.4,3562.3,0.56142]
[1754295743678,0.56141,3562.5,3562.4,0.5614]
[1754295743884,0.56142,3562.4,3562.3,0.56142]
[1754295744184,0.8034677,3562.5,3562.3,0.56142]
[1754295745885,22.5958,3562.6,3562.5,0.5614]
[1754295747389,22.5808,3562.6,3562.5,0.5614]
[1754295750794,22.5808,3562.6,3562.5,0.5614]
[1754295752692,23.38569738,3562.6,3562.5,0.5614]
[1754295752895,23.38569738,3562.6,3562.5,1.0614]
[1754295757311,23.38569738,3562.6,3562.5,0.5]
[1754295757505,23.55014273,3562.6,3562.5,0.5]
[1754295757902,23.38569738,3562.6,3562.5,0.5]
[1754295758112,23.55015146,3562.6,3562.5,0.5]
[1754295759913,23.38569738,3562.6,3562.5,0.5]
[1754295760307,23.55019175,3562.6,3562.5,0.5]
[1754295764914,23.55023283,3562.6,3562.5,0.5]
[1754295767320,25.06373421,3562.6,3562.5,0.5]
[1754295767520,23.55023283,3562.6,3562.5,0.5]
[1754295767720,0.56156,3561.5,3561.4,0.56155]
[1754295768013,19.371,3561.5,3560.8,1.40417]
[1754295768218,0.80489738,3561.4,3560.8,1.40417]
[1754295768520,3.2078,3561.2,3561.1,0.5616]
[1754295770712,3.76941,3561.2,3561.0,0.56163]
[1754295771018,0.56163,3561.0,3560.6,3.2078]
[1754295771220,19.372,3560.9,3560.8,0.56165]
[1754295771725,0.56166,3560.8,3560.7,0.56168]
[1754295771913,3.76946,3560.8,3560.6,0.56169]
[1754295772116,0.5617,3560.6,3560.5,0.56171]
[1754295772317,19.372,3560.7,3560.6,0.5617]
[1754295772622,0.5617,3560.6,3560.5,0.5617]
[1754295772823,19.93368,3560.7,3560.5,0.5617]
[1754295773024,19.372,3560.7,3560.5,0.5617]
[1754295773223,19.93369,3560.7,3560.5,0.5617]
[1754295773420,0.56173,3560.4,3559.9,1.40452]
[1754295773622,19.373,3560.3,3560.2,0.56176]
[1754295774519,0.56176,3560.2,3560.1,0.56177]
[1754295774726,0.56179,3560.1,3559.9,0.56181]
[1754295774920,19.373,3560.0,3559.9,0.56181]
[1754295775726,22.5808,3560.0,3559.8,0.56181]
[1754295776024,23.1426,3560.0,3559.8,0.56181]
[1754295776822,22.5808,3560.0,3559.8,0.56181]
[1754295779024,3.2078,3560.0,3559.8,0.56181]
[1754295779239,19.376,3559.9,3559.8,0.56181]
[1754295782429,0.56193,3559.2,3559.0,0.56195]
[1754295782730,19.377,3559.1,3558.9,1.0115343]
[1754295782931,19.93894,3559.1,3558.9,1.0115343]
[1754295783129,19.377,3559.1,3558.9,1.0115343]
[1754295783336,19.377,3559.1,3558.9,1.5734943]
[1754295783733,19.93894,3559.1,3558.9,1.0115343]
[1754295785936,19.377,3559.1,3558.9,1.5734943]
[1754295786236,40.447,3559.6,3559.5,0.56187]
[1754295786531,59.836,3559.6,3559.5,0.56187]
[1754295787033,59.838,3559.6,3559.5,0.56187]
[1754295789839,59.832,3559.6,3559.5,0.56187]
[1754295790338,3.2078,3560.2,3560.1,0.56177]
[1754295790539,22.5928,3560.2,3560.1,0.56177]
[1754295792034,43.6588,3560.6,3560.5,0.56171]
[1754295792234,63.0448,3560.6,3560.5,0.56171]
[1754295792439,63.0448,3560.6,3560.4,0.56171]
[1754295793038,19.386,3560.5,3560.4,0.56171]
[1754295794131,3.98871609,3561.4,3561.1,0.56161]
[1754295794328,0.80041557,3561.3,3561.1,0.56161]
[1754295794535,19.381,3561.2,3561.1,0.56161]
[1754295794735,20.18141557,3561.2,3561.1,0.56161]
[1754295795141,19.381,3561.2,3561.1,0.56161]
[1754295796634,19.381,3561.2,3560.6,3.2078]
[1754295796840,0.56166,3560.9,3560.2,4.6122]
[1754295797037,3.76951,3560.6,3559.9,1.40452]
[1754295797336,19.386,3560.5,3560.4,0.56172]
[1754295798136,19.94772,3560.5,3560.3,0.56174]
[1754295798438,19.94772,3560.5,3559.8,3.2078]
[1754295798439,19.386,3560.5,3559.8,3.2078]
[1754295798837,19.386,3560.5,3560.2,0.56175]
[1754295799035,19.386,3560.5,3560.3,0.56174]
[1754295800339,3.2078,3560.6,3560.5,0.56171]
[1754295800535,23.39422083,3560.6,3560.5,0.56171]
[1754295800736,19.384,3560.6,3560.5,0.56171]
[1754295802544,3.2078,3561.4,3561.3,0.56159]
[1754295802736,23.3981934,3561.4,3561.3,0.56159]
[1754295806247,23.56238761,3561.4,3561.3,0.56159]
[1754295807046,0.56159,3561.3,3560.7,1.40421]
[1754295807247,3.2078,3561.0,3560.9,0.56165]
[1754295807545,23.3871934,3561.0,3560.9,0.56165]
[1754295808644,3.2078,3561.0,3560.9,0.56165]
[1754295808951,22.5848,3561.0,3560.9,0.56165]
[1754295815547,23.38715973,3561.0,3560.9,0.56165]
[1754295816253,23.38770563,3561.0,3560.9,0.56165]
[1754295818347,23.55227368,3561.0,3560.9,0.56165]
[1754295820859,0.56165,3560.9,3560.8,0.56165]
[1754295821052,1.52912368,3560.9,3560.8,0.56165]
[1754295822061,0.56169,3560.8,3560.7,0.56167]
[1754295822259,20.34347368,3560.8,3560.7,0.56167]
[1754295823057,20.17790563,3560.8,3560.7,0.56167]
[1754295823262,19.375,3560.8,3560.7,0.56167]
[1754295825760,3.2078,3561.4,3561.3,0.56159]
[1754295826063,22.7476097,3561.4,3561.3,0.56159]
[1754295826257,22.74759701,3561.4,3561.3,0.56159]
[1754295826460,23.3832838,3561.4,3561.3,0.56159]
[1754295827355,22.5828,3561.4,3561.3,0.56159]
[1754295828566,3.2078,3561.9,3561.8,0.56151]
[1754295828858,23.5465036,3561.9,3561.8,0.56151]
[1754295829363,24.1080198,3561.9,3561.7,0.56152]
[1754295829664,0.9647098,3561.8,3561.7,0.56152]
[1754295832664,20.3367098,3561.8,3561.7,0.56152]
[1754295835867,0.56152,3561.7,3561.6,0.56153]
[1754295836060,0.56152,3561.7,3561.2,1.40401]
[1754295836061,0.56156,3561.5,3560.9,1.40413]
[1754295836367,19.93158,3561.4,3561.3,0.56157]
[1754295836562,20.73160786,3561.4,3561.3,0.56157]
[1754295836867,20.17002786,3561.4,3561.3,0.56159]
[1754295837468,0.56159,3561.3,3561.2,0.56159]
[1754295837668,1.36161786,3561.3,3561.2,0.56159]
[1754295838268,0.56161,3561.2,3561.0,0.56162]
[1754295838570,22.5768,3561.1,3561.0,0.56162]
[1754295838978,23.13843,3561.1,3560.9,0.56164]
[1754295839163,22.5768,3561.1,3560.6,3.2078]
[1754295839364,0.56165,3560.9,3560.6,0.56169]
[1754295839674,19.93167,3560.8,3560.5,0.5617]
[1754295839863,3.2078,3560.6,3560.5,0.5617]
[1754295840063,22.5768,3560.6,3560.5,0.5617]
[1754295841766,19.369,3560.6,3560.4,0.56172]
[1754295841969,3.2078,3560.8,3560.7,0.56168]
[1754295842171,3.2078,3561.2,3561.1,0.56161]
[1754295842470,23.54827946,3561.2,3561.0,0.56162]
[1754295842666,19.37,3561.2,3561.0,0.56162]
[1754295842865,3.2078,3561.6,3560.6,4.61204]
[1754295842866,19.37,3561.1,3560.6,4.61204]
[1754295843061,19.37,3561.0,3560.6,4.61204]
[1754295843473,19.37,3561.0,3560.9,0.56165]
[1754295844270,3.2078,3561.6,3561.5,0.56155]
[1754295844467,23.54824743,3561.6,3561.5,0.56155]
[1754295845471,23.38361462,3561.6,3561.5,0.56155]
[1754295845670,23.3835677,3561.6,3561.5,0.56155]
[1754295845875,19.37,3561.6,3561.5,0.56155]
[1754295847468,20.17577804,3561.6,3561.5,0.56155]
[1754295848777,0.56158,3561.4,3561.2,0.56159]
[1754295848974,19.369,3561.3,3561.2,0.56159]
[1754295849478,19.9306,3561.3,3561.1,0.56161]
[1754295849773,19.369,3561.3,3561.1,0.56161]
[1754295850875,0.80610778,3561.2,3561.1,0.56161]
[1754295852482,0.80610778,3561.2,3561.0,0.56162]
[1754295852977,0.56165,3561.0,3560.8,0.56165]
[1754295853174,0.56168,3560.7,3560.1,4.61221]
[1754295853375,19.368,3560.6,3560.5,0.5617]
[1754295853677,19.368,3560.6,3560.1,4.61221]
[1754295853678,19.368,3560.6,3560.4,0.56172]
[1754295853976,19.9297,3560.6,3560.4,0.56172]
[1754295854376,0.56175,3560.3,3560.1,0.56176]
[1754295854573,19.368,3560.2,3560.1,0.56176]
[1754295856372,19.92977,3560.2,3560.0,0.56178]
[1754295856578,0.56178,3560.1,3559.9,0.5618]
[1754295857578,19.92977,3560.2,3560.0,0.56178]
[1754295857775,19.368,3560.2,3559.7,3.2078]
[1754295857979,19.368,3560.2,3559.5,1.40468]
[1754295858275,0.56178,3560.1,3559.5,1.40468]
[1754295858475,3.2078,3560.0,3559.4,1.40468]
[1754295858680,19.369,3559.9,3559.8,0.56181]
[1754295859875,3.2078,3560.0,3559.8,0.56181]
[1754295860076,1.40411,3561.0,3559.4,1.40468]
[1754295860077,3.2078,3560.5,3560.4,0.56173]
[1754295860279,22.5788,3560.5,3560.4,0.56173]
[1754295860781,23.38421201,3560.5,3560.4,0.56173]
[1754295860982,23.38421201,3560.5,3560.3,0.56174]
[1754295861182,22.5788,3560.5,3560.2,0.56175]
[1754295861479,22.5788,3560.5,3560.3,0.56174]
[1754295861982,0.8053207,3560.4,3560.3,0.56174]
[1754295862182,23.14052,3560.5,3560.3,0.56174]
[1754295862484,0.56175,3560.3,3560.1,0.56177]
[1754295862678,19.37,3560.2,3560.1,0.56177]
[1754295862875,19.37,3560.2,3559.7,3.2078]
[1754295863084,19.37,3560.2,3560.0,0.56178]
[1754295863583,19.93177,3560.2,3560.0,0.56178]
[1754295863784,0.56179,3560.1,3559.9,0.5618]
[1754295864484,19.93177,3560.2,3559.6,1.40462]
[1754295864685,0.56178,3560.1,3560.0,0.56178]
[1754295864989,0.56175,3560.3,3560.2,0.56175]
[1754295865186,19.371,3560.3,3560.2,0.56175]
[1754295867283,19.371,3560.3,3560.1,0.56176]
[1754295867489,19.372,3560.2,3559.8,1.40456]
[1754295867689,19.372,3560.2,3559.6,3.2078]
[1754295867888,0.5618,3560.0,3559.3,1.40473]
[1754295868089,19.372,3559.9,3559.2,3.2078]
[1754295868286,0.56182,3559.8,3559.6,0.56184]
[1754295868690,0.56186,3559.6,3559.4,0.56188]
[1754295868890,19.372,3559.5,3559.4,0.56188]
[1754295873186,3.76955,3560.3,3558.9,1.0115343]
[1754295873498,20.17728668,3560.2,3560.0,0.56178]
[1754295873698,19.373,3560.2,3560.0,0.56178]
[1754295874698,19.93477,3560.2,3560.0,0.56178]
[1754295874999,0.56179,3560.0,3559.9,0.5618]
[1754295875198,0.56179,3560.1,3559.9,0.5618]
[1754295875893,1.36616738,3560.1,3559.9,0.5618]
[1754295876097,1.36635302,3560.1,3559.9,0.5618]
[1754295877700,0.56182,3559.9,3559.8,0.56181]
[1754295877900,19.93482,3559.9,3559.8,0.56181]
[1754295878202,23.14262,3559.9,3559.8,0.56181]
[1754295878703,22.5808,3559.9,3559.8,0.56181]
[1754295880304,23.3864056,3559.9,3559.3,1.40472]
[1754295880504,23.14263,3559.9,3559.8,0.56182]
[1754295880700,23.94824657,3559.9,3559.8,0.56182]
[1754295881307,0.56182,3559.8,3559.7,0.56183]
[1754295882008,0.56188,3559.6,3559.5,0.56186]
[1754295882208,19.93488,3559.6,3559.5,0.56186]
[1754295882406,0.56189,3559.5,3559.4,0.56187]
[1754295882700,3.2078,3560.3,3559.5,1.40466]
[1754295882903,0.5618,3560.0,3559.4,1.40472]
[1754295883208,20.34732074,3560.2,3560.0,0.56178]
[1754295883209,0.56177,3560.2,3560.0,0.56178]
[1754295883405,20.1795116,3560.1,3560.0,0.56178]
[1754295883605,20.34770247,3560.1,3560.0,0.56178]
[1754295883807,0.97470247,3560.1,3560.0,0.56178]
[1754295884007,20.34770247,3560.1,3560.0,0.56178]
[1754295884409,20.1795116,3560.1,3560.0,0.56178]
[1754295884610,20.3477343,3560.1,3560.0,0.56178]
[1754295885010,0.9747343,3560.1,3560.0,0.56178]
[1754295885210,20.3477343,3560.1,3560.0,0.56178]
[1754295885911,0.56179,3560.0,3559.9,0.5618]
[1754295886106,1.5365343,3560.0,3559.8,0.56181]
[1754295886306,0.9747343,3559.9,3559.8,0.56181]
[1754295890211,4.1825343,3559.9,3559.8,0.56181]
[1754295890413,4.1826558,3559.9,3559.8,0.56181]
[1754295890617,0.56185,3559.7,3559.6,0.56184]
[1754295890915,20.9097058,3559.7,3559.6,0.56184]
[1754295891612,20.3478558,3559.7,3558.7,3.2078]
[1754295891817,3.2078,3559.2,3559.0,0.56195]
[1754295892114,19.372,3559.1,3559.0,0.56195]
[1754295892305,0.56195,3559.0,3558.5,1.40506]
[1754295892506,0.80735447,3559.0,3558.5,1.40506]
[1754295892708,0.80735447,3559.0,3558.9,1.5734943]
[1754295892905,0.97575309,3559.0,3558.9,1.5734943]
[1754295893319,0.97575309,3559.0,3558.9,1.0115343]
[1754295897925,0.56213,3557.9,3557.5,3.2078]
[1754295898221,3.76995,3557.7,3557.4,0.56219]